bitfinex/quotes_SOLUSD_20240725
["timestamp","ask_amount","ask_price","bid_price","bid_amount"]
[1721905268066,15.5578,168.34,168.28,45.0]
[1721905269155,15.5578,168.34,168.29,20.0]
[1721905269370,6.3874,168.36,168.3,45.0]
[1721905269848,0.2835796,168.37,168.3,45.0]
[1721905270163,0.2835796,168.37,168.31,20.0]
[1721905274861,0.2835796,168.37,168.25,51.87563665]
[1721905274862,1.76865554,168.37,168.25,51.87563665]
[1721905275041,1.76865554,168.37,168.26,20.0]
[1721905275243,0.2835796,168.37,168.26,20.0]
[1721905275665,1.48536962,168.36,168.26,20.0]
[1721905276347,1.48539188,168.35,168.22,27.14]
[1721905276543,6.612,168.34,168.23,20.0]
[1721905277639,6.612,168.34,168.24,20.0]
[1721905277842,6.612,168.34,168.27,20.0]
[1721905278170,6.612,168.34,168.28,20.0]
[1721905278660,6.612,168.34,168.29,45.0]
[1721905278861,6.612,168.34,168.3,20.0]
[1721905279044,6.612,168.34,168.28,20.0]
[1721905279445,6.612,168.34,168.26,20.0]
[1721905279651,6.612,168.34,168.27,45.0]
[1721905279852,6.612,168.34,168.28,20.0]
[1721905280872,6.612,168.34,168.29,45.0]
[1721905281067,6.612,168.34,168.3,20.0]
[1721905283346,6.612,168.34,168.25,27.14]
[1721905283553,6.612,168.34,168.26,20.0]
[1721905285647,6.612,168.34,168.27,45.0]
[1721905285847,6.612,168.34,168.28,20.0]
[1721905286566,6.612,168.34,168.26,20.0]
[1721905287066,15.7332,168.33,168.26,20.0]
[1721905287270,15.7332,168.33,168.23,20.0]
[1721905287855,15.7332,168.33,168.24,45.0]
[1721905288047,15.7332,168.33,168.25,20.0]
[1721905288860,15.7332,168.33,168.26,45.0]
[1721905289060,15.7332,168.33,168.27,20.0]
[1721905289260,15.7332,168.33,168.28,45.0]
[1721905289464,404.7976,168.36,168.29,20.0]
[1721905289657,404.7976,168.36,168.3,45.0]
[1721905289860,404.7976,168.36,168.31,20.0]
[1721905290077,404.7976,168.36,168.32,45.0]
[1721905290251,404.7976,168.36,168.31,20.0]
[1721905291751,0.2835796,168.37,168.34,47.14]
[1721905291954,9.30829205,168.48,168.38,20.0]
[1721905291955,15.6467,168.47,168.38,20.0]
[1721905292149,15.6467,168.47,168.39,65.0]
[1721905292760,6.4463,168.52,168.42,20.0]
[1721905292964,6.4463,168.52,168.43,65.0]
[1721905293774,6.4463,168.52,168.43,20.0]
[1721905293775,1.48389536,168.51,168.43,20.0]
[1721905293952,1.48389536,168.51,168.39,22.35598739]
[1721905294151,7.93037775,168.52,168.39,22.35598739]
[1721905294348,1.48407775,168.51,168.4,45.0]
[1721905294553,1.48407775,168.51,168.41,20.0]
[1721905295479,1.48407775,168.51,168.42,45.0]
[1721905295660,1.48407775,168.51,168.43,20.0]
[1721905296158,395.4463,168.52,168.43,20.0]
[1721905296678,1.4839699,168.51,168.43,20.0]
[1721905297365,1.4839699,168.51,168.39,20.0]
[1721905297570,1.4839699,168.51,168.4,45.0]
[1721905297773,1.4839699,168.51,168.41,20.0]
[1721905299166,395.4463,168.52,168.41,20.0]
[1721905299367,395.4463,168.52,168.42,45.0]
[1721905299567,1.48392576,168.51,168.43,20.0]
[1721905300759,1.48392576,168.51,168.39,20.0]
[1721905300961,1.48392576,168.51,168.4,45.0]
[1721905301171,16.6501,168.5,168.41,20.0]
[1721905301377,64.34445519,168.49,168.31,20.0]
[1721905301564,390.48456035,168.48,168.34,27.14]
[1721905301770,389.0,168.48,168.37,27.14]
[1721905302468,389.0,168.48,168.31,20.0]
[1721905302469,6.1868,168.46,168.31,20.0]
[1721905302680,1.48471826,168.45,168.33,27.14]
[1721905302879,1.48471826,168.45,168.34,20.0]
[1721905305670,1.48468419,168.43,168.34,20.0]
[1721905305864,15.6482,168.44,168.34,20.0]
[1721905306183,1.48474851,168.43,168.34,20.0]
[1721905306399,1.48473359,168.42,168.34,20.0]
[1721905307672,6.0743,168.41,168.3,27.14]
[1721905307872,390.48501708,168.4,168.3,27.14]
[1721905308074,1.48501734,168.39,168.3,27.14]
[1721905308688,389.0,168.4,168.3,27.14]
[1721905308895,389.0,168.4,168.31,20.0]
[1721905309073,1.485027,168.39,168.31,20.0]
[1721905309387,15.8562,168.38,168.28,5.958]
[1721905309684,6.0743,168.37,168.28,5.958]
[1721905309864,6.0743,168.37,168.3,27.14]
[1721905310885,6.0743,168.37,168.31,65.0]
[1721905311387,6.0743,168.37,168.31,20.0]
[1721905311592,6.0743,168.37,168.29,20.0]
[1721905311974,7.5595529,168.37,168.29,20.0]
[1721905312283,6.0743,168.37,168.29,20.0]
[1721905313585,6.0743,168.37,168.3,45.0]
[1721905313793,6.0743,168.37,168.31,20.0]
[1721905314393,7.55954621,168.37,168.29,20.0]
[1721905315584,6.0743,168.37,168.29,20.0]
[1721905315786,6.0743,168.37,168.3,45.0]
[1721905316091,6.0743,168.37,168.31,20.0]
[1721905316687,7.55952017,168.37,168.31,20.0]
[1721905316868,7.55952017,168.37,168.29,20.0]
[1721905317871,389.0,168.36,168.24,29.56345381]
[1721905318075,389.0,168.36,168.25,20.0]
[1721905318288,1.48552627,168.35,168.24,27.14]
[1721905318497,46.48552627,168.35,168.24,27.14]
[1721905318684,389.0,168.36,168.24,27.14]
[1721905318993,1.48553039,168.35,168.24,27.14]
[1721905319396,389.0,168.36,168.24,27.14]
[1721905319792,389.0,168.36,168.25,45.0]
[1721905320195,1.48552566,168.35,168.25,45.0]
[1721905320388,389.0,168.36,168.25,45.0]
[1721905320790,1.4854547,168.35,168.26,20.0]
[1721905321006,389.0,168.36,168.27,45.0]
[1721905321309,389.0,168.36,168.28,20.0]
[1721905322305,6.0743,168.37,168.28,20.0]
[1721905322511,6.0743,168.37,168.3,27.14]
[1721905322707,6.0743,168.37,168.31,20.0]
[1721905323098,6.0743,168.37,168.32,45.0]
[1721905323297,6.0743,168.37,168.33,20.0]
[1721905324279,6.0743,168.37,168.31,20.0]
[1721905327284,1.48513414,168.36,168.27,27.14]
[1721905327483,1.48533001,168.35,168.27,27.14]
[1721905328310,1.48533001,168.35,168.24,27.14]
[1721905329319,40.3356,168.34,168.21,27.14]
[1721905329571,390.4858676,168.33,168.21,27.14]
[1721905329810,1.48586418,168.32,168.21,27.14]
[1721905330797,1.48586418,168.32,168.22,20.0]
[1721905331811,389.0,168.31,168.22,20.0]
[1721905332007,1.4860828,168.3,168.22,20.0]
[1721905332194,1.48608366,168.29,168.21,27.14]
[1721905332510,22.2923,168.28,168.21,27.14]
[1721905333210,1.48610742,168.27,168.21,27.14]
[1721905333586,23.77840954,168.28,168.22,20.0]
[1721905333788,22.2923,168.28,168.21,27.14]
[1721905334000,22.2923,168.28,168.22,20.0]
[1721905334201,1.48611201,168.27,168.22,20.0]
[1721905334718,22.2923,168.28,168.2,20.0]
[1721905335897,1.48618763,168.27,168.12,20.0]
[1721905336099,1.48635636,168.26,168.16,27.14]
[1721905337100,389.0,168.27,168.16,27.14]
[1721905337301,1.48633041,168.26,168.16,27.14]
[1721905337810,46.48633041,168.26,168.16,27.14]
[1721905338697,6.1573,168.24,168.13,27.14]
[1721905338905,1.48664161,168.23,168.13,27.14]
[1721905339717,390.48664161,168.23,168.13,27.14]
[1721905339922,34.0517,168.22,168.1,27.14]
[1721905340091,46.48691566,168.21,168.1,27.14]
[1721905340431,1.48691448,168.2,168.1,27.14]
[1721905340590,389.0,168.19,168.1,27.14]
[1721905341096,389.0,168.19,168.07,20.0]
[1721905341097,24.0194,168.17,168.03,27.14]
[1721905341403,15.9123,168.15,168.03,27.14]
[1721905341601,1.48749938,168.14,168.03,27.14]
[1721905341803,64.34749938,168.14,168.03,27.14]
[1721905341995,24.5116,168.13,168.0,27.14]
[1721905342189,46.48774606,168.12,168.0,27.14]
[1721905343709,1.48774606,168.12,168.03,27.14]
[1721905344903,46.48774606,168.12,168.03,27.14]
[1721905345498,1.48774606,168.12,168.03,27.14]
[1721905345694,8.13928193,168.13,168.03,27.14]
[1721905346099,389.0,168.12,168.03,27.14]
[1721905346300,389.0,168.12,168.06,27.14]
[1721905346700,389.0,168.12,168.09,27.14]
[1721905350904,389.0,168.12,168.07,20.0]
[1721905351126,389.0,168.12,168.06,27.14]
[1721905351306,1.48752033,168.11,168.06,27.14]
[1721905351515,1.48752033,168.11,168.03,27.14]
[1721905352230,1.48748384,168.12,168.03,27.14]
[1721905352838,1.48748384,168.12,168.04,20.0]
[1721905353129,6.6516,168.13,168.06,27.14]
[1721905353739,8.13885414,168.13,168.06,27.14]
[1721905354231,6.6516,168.13,168.07,20.0]
[1721905355039,6.6516,168.13,168.01,2.41774505]
[1721905355220,8.13885159,168.13,168.03,27.14]
[1721905355427,389.0,168.12,168.04,20.0]
[1721905355630,1.48760117,168.11,168.04,20.0]
[1721905355817,389.0,168.12,168.04,20.0]
[1721905356229,389.0,168.12,168.06,27.14]
[1721905356429,389.0,168.12,168.07,20.0]
[1721905357644,389.0,168.12,168.0,40.0]
[1721905357825,389.0,168.12,168.04,27.14]
[1721905358149,389.0,168.12,168.05,20.0]
[1721905361438,6.6516,168.13,168.05,20.0]
[1721905363129,6.6516,168.13,168.07,27.14]
[1721905365631,6.6516,168.13,168.07,27.14]
[1721905366257,8.13878131,168.13,168.05,20.0]
[1721905366457,6.6516,168.13,168.04,27.14]
[1721905366661,6.6516,168.13,168.05,20.0]
[1721905367088,8.13889303,168.13,168.05,20.0]
[1721905367571,6.6516,168.13,168.05,20.0]
[1721905367740,6.6516,168.13,168.07,27.14]
[1721905369251,8.13900302,168.13,168.07,27.14]
[1721905369767,6.6516,168.13,168.07,27.14]
[1721905370967,1.48740307,168.12,168.06,0.07284956]
[1721905371346,6.6516,168.13,168.06,0.07284956]
[1721905372561,1.48744662,168.12,168.06,0.07284956]
[1721905373239,1.48744662,168.12,168.05,19.07284956]
[1721905373448,1.48744662,168.12,168.02,20.0]
[1721905373675,1.48744662,168.12,168.03,72.14]
[1721905375665,1.48744662,168.12,168.04,20.0]
[1721905376556,1.48744662,168.12,167.73,13.74969571]
[1721905376557,32.8645,168.11,167.95,40.0]
[1721905376859,46.48795137,168.1,167.98,27.14]
[1721905377066,389.0,168.09,167.98,27.14]
[1721905377245,1.48793628,168.08,167.98,27.14]
[1721905377759,1.48793628,168.08,167.99,20.0]
[1721905378359,1.48793628,168.08,167.95,20.0]
[1721905378559,1.48793628,168.08,167.99,27.14]
[1721905379456,6.0594,168.07,167.99,27.14]
[1721905379655,1.48796102,168.06,167.99,27.14]
[1721905379860,16.4369,168.05,168.0,20.0]
[1721905380748,408.34798592,168.04,167.96,0.7835796]
[1721905380954,6.4314,168.03,167.96,0.7835796]
[1721905381152,390.48869703,168.02,167.96,0.7835796]
[1721905381458,60.7607,168.01,167.96,0.7835796]
[1721905381648,1.48871221,168.0,167.96,0.7835796]
[1721905383475,15.4769,167.98,167.79,23.4472796]
[1721905383653,390.48897479,167.97,167.86,27.14]
[1721905384264,389.0,167.96,167.86,27.14]
[1721905384467,1.48905754,167.95,167.86,27.14]
[1721905385860,1.48905754,167.95,167.87,20.0]
[1721905386559,1.48905754,167.95,167.86,27.14]
[1721905386769,1.48905754,167.95,167.87,20.0]
[1721905387464,389.0,167.96,167.92,27.14]
[1721905387659,15.4769,167.98,167.93,20.0]
[1721905387872,6.1323,167.99,167.93,20.0]
[1721905388659,16.1368,168.02,167.95,27.14]
[1721905388863,16.1368,168.02,167.96,20.0]
[1721905389079,16.1368,168.02,167.98,27.14]
[1721905389386,389.0,168.03,167.99,20.0]
[1721905389678,6.1639,168.04,167.99,20.0]
[1721905389864,1.48809135,168.03,167.88,20.0]
[1721905390181,389.0,168.02,167.93,27.14]
[1721905390357,389.0,168.02,167.96,27.14]
[1721905390551,6.1639,168.04,167.97,20.0]
[1721905390851,1.48794698,168.04,167.99,27.14]
[1721905391056,0.3439,168.05,168.0,20.0]
[1721905391763,0.3439,168.05,167.98,20.0]
[1721905392159,0.3439,168.05,167.99,27.14]
[1721905392361,0.3439,168.05,168.02,27.14]
[1721905392557,0.3439,168.05,168.03,20.0]
[1721905393558,15.1996,168.15,168.04,65.0]
[1721905393756,15.1996,168.15,168.08,27.14]
[1721905394061,15.1996,168.15,168.09,20.0]
[1721905396458,389.0,168.16,168.09,20.0]
[1721905396666,389.0,168.16,168.11,27.14]
[1721905396874,404.7027,168.19,168.12,20.0]
[1721905397267,15.7027,168.19,168.12,20.0]
[1721905397467,1.48674172,168.2,168.12,20.0]
[1721905397973,16.4115,168.23,168.14,27.14]
[1721905398292,6.4415,168.25,168.15,20.0]
[1721905398593,6.4415,168.29,168.2,27.14]
[1721905398756,6.4415,168.29,168.21,20.0]
[1721905398962,389.2,168.31,168.21,65.0]
[1721905399191,1.48591741,168.3,168.21,20.0]
[1721905399479,1.48600423,168.29,168.21,20.0]
[1721905399676,1.48599685,168.3,168.21,20.0]
[1721905399981,389.2,168.35,168.26,27.14]
[1721905400194,389.2,168.35,168.27,20.0]
[1721905402382,389.2,168.35,168.25,20.0]
[1721905402681,389.2,168.35,168.26,45.0]
[1721905402881,389.2,168.35,168.27,40.0]
[1721905403082,0.7835796,168.37,168.27,40.0]
[1721905403083,0.7835796,168.37,168.28,75.54]
[1721905403275,0.7835796,168.37,168.29,20.0]
[1721905403485,0.7835796,168.37,168.3,45.0]
[1721905403666,0.7835796,168.37,168.31,20.0]
[1721905403862,0.7835796,168.37,168.32,30.54]
[1721905404067,389.2,168.48,168.34,20.0]
[1721905404285,389.2,168.47,168.35,65.0]
[1721905404487,1.4844927,168.46,168.35,65.0]
[1721905404675,1.48453467,168.45,168.35,65.0]
[1721905405192,1.48452296,168.46,168.35,65.0]
[1721905405393,1.48445416,168.45,168.35,65.0]
[1721905405574,1.4845933,168.46,168.35,65.0]
[1721905405786,1.48458259,168.46,168.35,65.0]
[1721905406075,389.2,168.47,168.36,30.54]
[1721905406276,389.2,168.47,168.37,65.0]
[1721905406481,1.48443548,168.46,168.37,65.0]
[1721905407109,1.4844355,168.45,168.37,65.0]
[1721905407297,1.48438393,168.46,168.37,65.0]
[1721905408491,1.48438404,168.45,168.37,20.0]
[1721905408883,1.48438404,168.45,168.33,20.0]
[1721905409193,389.2,168.46,168.34,65.0]
[1721905409408,1.48440372,168.45,168.35,20.0]
[1721905409573,1.48440372,168.45,168.35,26.2942]
[1721905409766,389.2,168.46,168.36,45.0]
[1721905410090,389.2,168.46,168.39,30.54]
[1721905410397,389.2,168.46,168.4,65.0]
[1721905411084,389.2,168.46,168.41,20.0]
[1721905411389,0.8835796,168.54,168.42,85.0]
[1721905411573,1.48382891,168.53,168.42,65.0]
[1721905412790,2.36760533,168.54,168.42,65.0]
[1721905412993,1.48402573,168.52,168.42,65.0]
[1721905413297,1.48398183,168.51,168.42,65.0]
[1721905413877,0.8835796,168.54,168.42,65.0]
[1721905413878,0.8835796,168.54,168.42,85.0]
[1721905414078,2.36734398,168.54,168.43,30.54]
[1721905414379,2.36734398,168.54,168.44,65.0]
[1721905415193,0.8835796,168.54,168.44,65.0]
[1721905415417,2.36735543,168.54,168.44,65.0]
[1721905415578,2.36735543,168.54,168.44,20.0]
[1721905415883,0.8835796,168.54,168.44,20.0]
[1721905416400,0.8835796,168.54,168.45,45.0]
[1721905416573,0.8835796,168.54,168.46,20.0]
[1721905416774,2.36735217,168.54,168.46,20.0]
[1721905417174,2.36735217,168.54,168.39,32.96612014]
[1721905418075,5.9338,168.53,168.35,12.19620766]
[1721905418296,435.68445815,168.52,168.35,6.2942]
[1721905418473,390.68450832,168.51,168.35,6.2942]
[1721905418672,45.0,168.5,168.35,6.2942]
[1721905418873,1.48463601,168.49,168.35,6.2942]
[1721905419100,1.48457928,168.48,168.35,6.2942]
[1721905419296,1.48457928,168.48,168.36,30.54]
[1721905420105,1.48429084,168.5,168.36,30.54]
[1721905420418,1.48429084,168.5,168.37,85.0]
[1721905421326,1.48421816,168.49,168.37,85.0]
[1721905421606,1.48421377,168.49,168.37,85.0]
[1721905421913,1.48421948,168.48,168.37,85.0]
[1721905422286,1.48421948,168.48,168.37,65.0]
[1721905422598,7.53701948,168.48,168.37,20.0]
[1721905424181,7.53701948,168.48,168.38,45.0]
[1721905424404,7.53701948,168.48,168.37,20.0]
[1721905425785,7.53701948,168.48,168.38,45.0]
[1721905425985,7.53701948,168.48,168.39,20.0]
[1721905426494,7.53701948,168.48,168.36,30.54]
[1721905426698,45.0,168.47,168.32,30.54]
[1721905426881,1.48479079,168.46,168.33,45.0]
[1721905427205,390.68479224,168.45,168.33,45.0]
[1721905427504,390.68479224,168.45,168.32,32.8924133]
[1721905427686,389.2,168.44,168.32,30.54]
[1721905427884,46.48508475,168.43,168.32,30.54]
[1721905428085,1.48513202,168.42,168.32,30.54]
[1721905428603,1.48513202,168.42,168.28,30.54]
[1721905428901,1.48513202,168.42,168.29,45.0]
[1721905429201,1.48513202,168.42,168.3,20.0]
[1721905429409,1.48513202,168.42,168.31,45.0]
[1721905429602,1.48513202,168.42,168.32,20.0]
[1721905429785,1.48513202,168.42,168.3,20.0]
[1721905430298,1.48513202,168.42,168.29,20.0]
[1721905430886,1.48513202,168.42,168.3,45.0]
[1721905431293,1.48513202,168.42,168.31,20.0]
[1721905432191,1.48513202,168.42,168.32,75.54]
[1721905432600,1.48513202,168.42,168.33,20.0]
[1721905432800,1.48513202,168.42,168.34,45.0]
[1721905433009,1.48513202,168.42,168.35,20.0]
[1721905433379,1.48467264,168.46,168.35,20.0]
[1721905433702,389.2,168.47,168.35,20.0]
[1721905434007,1.48452982,168.46,168.36,45.0]
[1721905434192,1.48452509,168.45,168.37,20.0]
[1721905434706,389.2,168.47,168.37,20.0]
[1721905434919,389.2,168.47,168.33,20.0]
[1721905435088,389.2,168.47,168.34,65.0]
[1721905435089,1.48452656,168.46,168.34,65.0]
[1721905435290,1.48458926,168.45,168.35,20.0]
[1721905435602,1.48458926,168.45,168.36,45.0]
[1721905435810,1.48458926,168.45,168.37,20.0]
[1721905438111,1.48458748,168.46,168.37,20.0]
[1721905438295,1.48429029,168.45,168.37,20.0]
[1721905439487,1.48456099,168.47,168.37,20.0]
[1721905440219,1.48456099,168.47,168.38,27.12]
[1721905440419,1.48456099,168.47,168.39,20.0]
[1721905441411,46.48456099,168.47,168.39,20.0]
[1721905441715,435.68456099,168.47,168.39,20.0]
[1721905442010,435.68456099,168.47,168.35,27.12]
[1721905442313,453.53456099,168.47,168.35,27.12]
[1721905443394,453.53456099,168.47,168.36,20.0]
[1721905443907,17.85,168.45,168.35,27.12]
[1721905444107,46.48500254,168.44,168.35,27.12]
[1721905444306,1.48500254,168.44,168.35,27.12]
[1721905445092,1.48500254,168.44,168.36,20.0]
[1721905447714,404.262,168.43,168.32,27.12]
[1721905447916,46.48510194,168.42,168.33,20.0]
[1721905449894,1.48510194,168.42,168.33,20.0]
[1721905450305,46.48510194,168.42,168.33,20.0]
[1721905450995,1.48510194,168.42,168.33,20.0]
[1721905453099,404.262,168.43,168.35,27.12]
[1721905453304,404.262,168.43,168.36,20.0]
[1721905453501,15.062,168.43,168.38,27.12]
[1721905453726,15.062,168.43,168.39,20.0]
[1721905454021,1.48461981,168.47,168.39,20.0]
[1721905454802,7.53729593,168.48,168.39,20.0]
[1721905455003,1.48449593,168.46,168.39,20.0]
[1721905455613,24.5103,168.44,168.29,2.44356424]
[1721905455806,1.48508468,168.43,168.31,27.12]
[1721905455995,1.48508468,168.42,168.31,27.12]
[1721905456203,6.6603,168.44,168.34,27.12]
[1721905456722,1.48473927,168.43,168.34,27.12]
[1721905456921,6.6603,168.44,168.34,27.12]
[1721905457619,6.6603,168.44,168.37,27.12]
[1721905457919,15.6948,168.45,168.38,20.0]
[1721905458125,15.6948,168.45,168.39,45.0]
[1721905458308,15.6948,168.45,168.38,20.0]
[1721905459414,15.6948,168.45,168.39,45.0]
[1721905459602,15.6948,168.45,168.4,20.0]
[1721905461443,6.4763,168.48,168.4,20.0]
[1721905463509,6.4763,168.48,168.4,47.12]
[1721905464131,6.4763,168.48,168.41,45.0]
[1721905466522,6.4763,168.48,168.42,20.0]
[1721905467624,16.5338,168.5,168.42,20.0]
[1721905467817,6.1621,168.52,168.43,72.12]
[1721905468018,6.1621,168.52,168.44,20.0]
[1721905468343,6.1621,168.52,168.45,45.0]
[1721905468641,16.5989796,168.54,168.46,20.0]
[1721905470220,18.08272859,168.54,168.46,20.0]
[1721905470626,16.5989796,168.54,168.46,20.0]
[1721905471021,18.08272871,168.54,168.46,20.0]
[1721905474127,16.5989796,168.54,168.46,20.0]
[1721905474527,18.08268872,168.54,168.46,20.0]
[1721905475117,18.08268872,168.54,168.44,20.0]
[1721905475724,18.08285214,168.54,168.44,20.0]
[1721905478841,62.85,168.53,168.38,27.12]
[1721905479019,1.48427246,168.52,168.38,47.12]
[1721905479221,16.5989796,168.54,168.38,47.12]
[1721905479222,1.48402092,168.51,168.38,47.12]
[1721905480121,1.48402092,168.51,168.39,20.0]
[1721905480319,1.48410485,168.5,168.39,20.0]
[1721905480520,1.48410485,168.5,168.4,45.0]
[1721905480719,1.48410485,168.5,168.39,45.0]
[1721905481830,1.48410485,168.5,168.4,20.0]
[1721905482729,1.48422292,168.49,168.4,20.0]
[1721905483140,1.48424226,168.53,168.4,20.0]
[1721905483448,389.2,168.52,168.41,72.12]
[1721905483646,389.2,168.52,168.42,20.0]
[1721905484353,389.2,168.52,168.43,45.0]
[1721905484555,389.2,168.52,168.44,20.0]
[1721905484856,389.2,168.52,168.45,45.0]
[1721905486332,389.2,168.52,168.49,13.55]
[1721905486744,389.2,168.52,168.48,13.55]
[1721905487748,389.2,168.52,168.49,13.55]
[1721905488123,389.2,168.52,168.44,20.0]
[1721905488331,389.2,168.52,168.45,45.0]
[1721905488531,389.2,168.52,168.46,47.1]
[1721905488730,389.2,168.52,168.47,45.0]
[1721905489254,16.5989796,168.54,168.48,20.0]
[1721905490152,18.0826047,168.54,168.48,20.0]
[1721905490341,18.0826047,168.54,168.47,20.0]
[1721905491050,18.0826047,168.54,168.44,20.0]
[1721905491250,18.0826047,168.54,168.45,45.0]
[1721905491447,18.0826047,168.54,168.46,20.0]
[1721905491646,16.5989796,168.54,168.47,45.0]
[1721905491843,16.5989796,168.54,168.48,20.0]
[1721905492864,1.48365946,168.53,168.48,20.0]
[1721905493147,16.5989796,168.54,168.48,20.0]
[1721905495553,0.8835796,168.54,168.5,27.1]
[1721905495743,6.0943,168.6,168.53,27.1]
[1721905496339,404.6658,168.62,168.54,65.0]
[1721905496540,15.4658,168.62,168.54,65.0]
[1721905497248,6.2407,168.65,168.54,65.0]
[1721905497546,1.48265511,168.64,168.54,65.0]
[1721905498345,1.48265511,168.64,168.54,20.0]
[1721905498549,46.48265511,168.64,168.54,20.0]
[1721905499245,6.2407,168.65,168.54,20.0]
[1721905499246,7.72386227,168.65,168.54,20.0]
[1721905499437,1.48279082,168.64,168.54,20.0]
[1721905500667,1.48297536,168.63,168.5,27.1]
[1721905500834,19.33297536,168.63,168.5,27.1]
[1721905501034,45.0,168.62,168.5,27.1]
[1721905501246,1.48322567,168.62,168.5,27.1]
[1721905501843,1.48322567,168.62,168.51,65.0]
[1721905502173,46.48322956,168.64,168.51,65.0]
[1721905502832,64.33322956,168.64,168.51,20.0]
[1721905503455,23.7804,168.63,168.51,20.0]
[1721905503753,64.33344899,168.62,168.51,20.0]
[1721905503932,46.48344899,168.62,168.51,20.0]
[1721905504343,45.0,168.61,168.51,20.0]
[1721905504533,1.48344139,168.6,168.51,20.0]
[1721905505352,1.48343881,168.64,168.51,20.0]
[1721905505550,1.48343881,168.62,168.51,20.0]
[1721905506363,1.4832502,168.61,168.51,20.0]
[1721905506553,1.48333503,168.6,168.51,20.0]
[1721905506956,1.48335435,168.63,168.51,20.0]
[1721905507151,46.48335435,168.63,168.51,20.0]
[1721905507356,45.0,168.62,168.51,20.0]
[1721905507554,1.4833406,168.62,168.51,20.0]
[1721905508045,1.48326191,168.63,168.51,20.0]
[1721905508240,1.48317034,168.64,168.51,20.0]
[1721905508564,1.48317034,168.64,168.53,27.1]
[1721905508864,1.48317034,168.64,168.54,20.0]
[1721905509740,46.48317034,168.64,168.54,20.0]
[1721905510161,46.48317034,168.64,168.57,13.54]
[1721905510162,13.54,168.62,168.57,13.54]
[1721905511573,15.02310312,168.62,168.57,13.54]
[1721905511949,13.54,168.62,168.57,13.54]
[1721905514963,1.4831011,168.64,168.57,13.54]
[1721905515149,13.54,168.63,168.58,13.54]
[1721905515552,13.54,168.63,168.54,20.0]
[1721905515866,15.02297395,168.62,168.57,13.54]
[1721905516551,13.54,168.62,168.57,13.54]
[1721905517254,13.54,168.6,168.54,33.54]
[1721905517560,15.02331824,168.59,168.54,20.0]
[1721905517761,15.02331824,168.59,168.54,13.54]
[1721905517967,13.54,168.59,168.54,13.54]
[1721905519658,1.48338105,168.58,168.49,6.3246]
[1721905519858,13.54,168.55,168.5,13.54]
[1721905520062,1.48372917,168.54,168.5,13.54]
[1721905520260,13.54,168.55,168.5,13.54]
[1721905520572,15.02372897,168.54,168.49,13.54]
[1721905520765,13.54,168.54,168.49,13.54]
[1721905520960,13.54,168.55,168.5,13.54]
[1721905522775,1.48374541,168.54,168.5,13.54]
[1721905523154,13.54,168.55,168.5,13.54]
[1721905526778,13.54,168.55,168.49,13.54]